bitfinex/quotes_SOLUSD_20260109
["timestamp","ask_amount","ask_price","bid_price","bid_amount"]
[1767983582032,21.42978537,136.29,136.23,0.68321183]
[1767983582033,12.0395986,136.27,136.23,0.68321183]
[1767983582757,25.4395986,136.32,136.26,12.72281043]
[1767983582961,12.0395986,136.31,136.26,0.68321183]
[1767983583154,12.0395986,136.31,136.26,12.72281043]
[1767983583459,19.37581941,136.31,136.26,0.68321183]
[1767983583661,12.0395986,136.29,136.24,12.0395986]
[1767983583854,12.74815724,136.29,136.24,12.0395986]
[1767983584055,12.74815724,136.29,136.23,12.59501135]
[1767983584256,0.70855864,136.28,136.23,12.0395986]
[1767983584574,0.70855864,136.28,136.22,12.0395986]
[1767983584758,12.74815724,136.28,136.23,12.0395986]
[1767983584946,0.70855864,136.28,136.23,12.0395986]
[1767983585150,12.74815724,136.28,136.23,12.0395986]
[1767983585345,12.74815724,136.28,136.22,7.89614587]
[1767983585563,12.74815724,136.28,136.23,12.0395986]
[1767983585739,20.73752669,136.29,136.23,12.59501135]
[1767983585942,13.4,136.29,136.24,12.0395986]
[1767983586139,13.4,136.29,136.23,0.55541275]
[1767983586140,12.0395986,136.28,136.23,0.55541275]
[1767983586442,21.44588964,136.29,136.23,0.55541275]
[1767983586645,12.0395986,136.28,136.23,12.59501135]
[1767983586857,25.4395986,136.29,136.24,12.59501135]
[1767983587561,12.74815724,136.3,136.25,12.0395986]
[1767983588637,12.74815724,136.29,136.24,7.33979014]
[1767983588872,12.74815724,136.28,136.23,19.37988704]
[1767983589063,0.70855864,136.28,136.24,12.0395986]
[1767983589642,12.0395986,136.29,136.24,19.37941419]
[1767983589966,0.70855864,136.29,136.25,12.0395986]
[1767983590659,20.08552034,136.29,136.24,12.0395986]
[1767983590847,0.70855864,136.28,136.23,7.89574331]
[1767983591162,12.74815724,136.28,136.23,19.93534191]
[1767983591362,12.74815724,136.28,136.23,12.59501135]
[1767983591567,12.0395986,136.25,136.2,19.38153142]
[1767983591875,12.0395986,136.25,136.2,7.897469]
[1767983592043,8.04788997,136.26,136.2,19.9370676]
[1767983592239,12.0395986,136.25,136.2,19.9370676]
[1767983592545,7.39912924,136.25,136.2,15.29659824]
[1767983593073,0.70855864,136.26,136.21,7.39912924]
[1767983593247,15.44664374,136.26,136.21,7.39912924]
[1767983593943,8.10768788,136.25,136.19,7.34246677]
[1767983594264,8.10768788,136.24,136.19,15.29700876]
[1767983594470,8.10768788,136.24,136.19,14.74159601]
[1767983594665,8.0475145,136.26,136.19,0.55541275]
[1767983594849,8.10768788,136.26,136.21,7.39912924]
[1767983595050,0.70855864,136.26,136.21,14.74065725]
[1767983595367,15.44565363,136.28,136.22,7.95454199]
[1767983595559,7.39912924,136.27,136.22,0.55541275]
[1767983595957,7.39912924,136.27,136.22,7.95454199]
[1767983596345,8.10768788,136.27,136.22,0.55541275]
[1767983596545,8.10768788,136.26,136.21,7.39912924]
[1767983596758,0.70855864,136.26,136.21,14.74060088]
[1767983597466,0.70855864,136.26,136.22,14.74017887]
[1767983597663,7.39912924,136.27,136.22,7.34104963]
[1767983597870,15.44610371,136.27,136.22,14.74017887]
[1767983598171,8.04697447,136.27,136.22,7.39912924]
[1767983598359,21.44598586,136.29,136.24,7.39912924]
[1767983598558,0.70855864,136.27,136.23,14.73920955]
[1767983599068,0.70855864,136.26,136.22,7.34086072]
[1767983599568,0.70855864,136.25,136.22,7.34103121]
[1767983600657,0.70855864,136.25,136.2,7.34201879]
[1767983600861,8.10768788,136.25,136.2,7.34201879]
[1767983601048,0.70855864,136.25,136.2,7.34201879]
[1767983601376,8.10768788,136.25,136.2,7.34201879]
[1767983601876,0.70855864,136.22,136.18,14.7420672]
[1767983602174,0.70855864,136.22,136.18,7.34293796]
[1767983602690,0.70855864,136.24,136.18,7.89835071]
[1767983602976,8.10768788,136.24,136.19,7.95454199]
[1767983603562,0.70855864,136.24,136.19,0.55541275]
[1767983603777,7.39912924,136.24,136.2,7.89747573]
[1767983603987,26.39097718,136.28,136.21,7.95454199]
[1767983604266,8.10768788,136.25,136.19,7.34259003]
[1767983604566,0.70855864,136.23,136.19,7.34266948]
[1767983604768,8.10768788,136.25,136.19,7.95454199]
[1767983604942,7.39912924,136.24,136.2,7.34200821]
[1767983605148,7.33783387,136.28,136.21,0.55541275]
[1767983605469,8.10768788,136.27,136.22,0.55541275]
[1767983605777,8.10768788,136.26,136.21,0.55541275]
[1767983606074,8.10768788,136.26,136.21,7.95454199]
[1767983606075,7.39912924,136.26,136.21,7.95454199]
[1767983606260,7.39912924,136.27,136.22,7.95454199]
[1767983606459,8.10768788,136.27,136.22,7.95454199]
[1767983607468,0.70855864,136.27,136.22,15.29531703]
[1767983607677,8.10768788,136.27,136.22,15.29531703]
[1767983607973,0.70855864,136.27,136.22,15.29531703]
[1767983608372,0.70855864,136.25,136.2,21.35454199]
[1767983608561,0.70855864,136.25,136.2,15.29647678]
[1767983609062,8.10768788,136.25,136.2,15.29647678]
[1767983609475,0.70855864,136.23,136.17,7.34376147]
[1767983609776,0.64855862,136.22,136.18,7.39912924]
[1767983609961,0.61855862,136.22,136.18,7.39912924]
[1767983610872,0.58855854,136.22,136.17,14.74289071]
[1767983611077,0.58855854,136.22,136.18,7.39912924]
[1767983611558,0.58855854,136.22,136.19,7.39912924]
[1767983611755,0.58855854,136.22,136.17,14.74268111]
[1767983611954,0.58855854,136.22,136.17,28.14268111]
[1767983612876,0.58855854,136.22,136.18,7.39912924]
[1767983613052,0.55855854,136.22,136.18,7.39912924]
[1767983613249,0.55855854,136.22,136.18,14.74232435]
[1767983614155,20.73953076,136.25,136.19,7.34266098]
[1767983614468,20.73953076,136.25,136.18,14.74215033]
[1767983614653,20.73953076,136.25,136.18,15.44337211]
[1767983614654,7.39912924,136.24,136.18,15.44337211]
[1767983614852,7.39912924,136.24,136.18,8.04424287]
[1767983615075,0.68438427,136.22,136.17,7.34354567]
[1767983615280,0.68438427,136.22,136.17,28.14267491]
[1767983615661,0.68438427,136.22,136.17,28.84389669]
[1767983615877,0.68438427,136.22,136.19,7.39912924]
[1767983616179,0.68438427,136.24,136.19,14.74179745]
[1767983617296,0.68438427,136.24,136.19,15.44301923]
[1767983617457,0.68438427,136.24,136.2,7.39912924]
[1767983618172,0.68438427,136.24,136.2,14.7409457]
[1767983618559,14.08438427,136.28,136.22,8.10035102]
[1767983618883,0.68438427,136.3,136.25,7.39912924]
[1767983619178,0.68438427,136.3,136.26,7.39912924]
[1767983619777,8.08351351,136.28,136.24,13.4]
[1767983619967,0.68438427,136.27,136.23,7.39912924]
[1767983620160,0.68438427,136.27,136.22,8.10035102]
[1767983620364,0.68438427,136.27,136.22,15.44132897]
[1767983621181,8.08351351,136.26,136.21,20.79912924]
[1767983621478,0.68438427,136.26,136.21,28.14055615]
[1767983621670,0.68438427,136.26,136.22,7.39912924]
[1767983621865,0.68438427,136.26,136.21,7.34142691]
[1767983622376,0.68438427,136.26,136.21,14.74055615]
[1767983622573,0.68438427,136.26,136.22,7.39912924]
[1767983623154,0.68438427,136.26,136.21,14.74055615]
[1767983623358,0.68438427,136.24,136.19,20.74218732]
[1767983623581,0.68438427,136.24,136.2,7.39912924]
[1767983623954,0.68438427,136.24,136.19,7.34240234]
[1767983624275,8.02449895,136.24,136.2,7.39912924]
[1767983624663,8.02449895,136.24,136.19,14.74153158]
[1767983625207,0.68438427,136.23,136.19,7.34240234]
[1767983625481,0.68438427,136.23,136.19,7.39912924]
[1767983625688,0.68438427,136.23,136.19,14.74172474]
[1767983625980,0.68438427,136.23,136.2,7.34206459]
[1767983626786,0.68438427,136.23,136.19,14.74161599]
[1767983626972,0.68438427,136.23,136.2,7.39912924]
[1767983627173,0.68438427,136.23,136.19,7.34248675]
[1767983627174,0.68438427,136.25,136.21,7.39912924]
[1767983627688,0.68438427,136.25,136.2,7.39912924]
[1767983627883,0.68438427,136.26,136.21,7.39912924]
[1767983628084,0.68438427,136.26,136.22,7.39912924]
[1767983628275,0.68438427,136.24,136.2,7.39912924]
[1767983628473,0.68438427,136.24,136.2,28.14121658]
[1767983629162,0.68438427,136.24,136.2,20.79912924]
[1767983629358,0.68438427,136.24,136.2,28.14114442]
[1767983631574,0.68438427,136.24,136.21,7.39912924]
[1767983633391,0.68438427,136.24,136.2,20.74201518]
[1767983633588,0.68438427,136.24,136.21,7.39912924]
[1767983635685,0.68438427,136.24,136.2,20.74201518]
[1767983635894,0.68438427,136.24,136.21,7.39912924]
[1767983636474,0.68438427,136.24,136.21,2.90012054]
[1767983636680,0.68438427,136.24,136.2,20.74201518]
[1767983636873,0.68438427,136.24,136.2,23.64213572]
[1767983637372,0.68438427,136.24,136.2,10.90698229]
[1767983637574,0.71535506,136.26,136.21,3.56496711]
[1767983637994,0.71535506,136.26,136.22,3.56496711]
[1767983638382,0.71535506,136.26,136.22,2.90012054]
[1767983639282,0.71535506,136.26,136.22,10.240812]
[1767983640883,0.71535506,136.26,136.22,7.34069146]
[1767983641081,0.71535506,136.27,136.23,2.90012054]
[1767983641278,0.71535506,136.27,136.23,10.24019276]
[1767983641596,0.71535506,136.27,136.24,2.90012054]
[1767983642499,0.71535506,136.27,136.21,32.41841208]
[1767983642702,0.71535506,136.26,136.22,13.4]
[1767983642873,0.70826669,136.26,136.22,21.42694437]
[1767983643078,0.70826669,136.26,136.23,10.24059125]
[1767983643303,0.70826669,136.26,136.23,2.90012054]
[1767983644098,0.70826669,136.26,136.22,23.64094098]
[1767983644383,0.70826669,136.26,136.21,7.34153479]
[1767983644384,0.70826669,136.25,136.21,7.34153479]
[1767983644685,0.70826669,136.24,136.19,0.68599388]
[1767983644889,0.70826669,136.24,136.2,2.90012054]
[1767983646277,0.70826669,136.24,136.21,2.90012054]
[1767983646484,0.70826669,136.25,136.22,2.90012054]
[1767983646981,0.70826669,136.25,136.21,2.90012054]
[1767983649418,0.70826669,136.25,136.2,10.24224147]
[1767983650090,0.70826669,136.25,136.21,2.90012054]
[1767983650705,0.70826669,136.25,136.22,2.90012054]
[1767983651224,0.70826669,136.27,136.2,26.38347457]
[1767983651513,0.70826669,136.26,136.21,16.30012054]
[1767983651732,0.70826669,136.26,136.21,13.4]
[1767983651916,0.70826669,136.25,136.21,2.90012054]
[1767983652226,0.70826669,136.25,136.21,16.30012054]
[1767983652393,0.70826669,136.26,136.23,2.90012054]
[1767983653292,115.44645346,136.28,136.23,3.58611442]
[1767983654026,112.54633292,136.28,136.23,3.58611442]
[1767983654234,104.5,136.28,136.24,0.68599388]
[1767983654514,0.70826669,136.31,136.26,5.21368384]
[1767983654716,0.70826669,136.3,136.26,0.68599388]
[1767983655011,0.70826669,136.3,136.25,4.52768996]
[1767983655308,0.70826669,136.3,136.24,14.08599388]
[1767983655519,0.70826669,136.3,136.25,4.52768996]
[1767983655815,8.04398406,136.32,136.27,4.52768996]
[1767983656020,0.70826669,136.32,136.28,4.52768996]
[1767983656222,0.70826669,136.32,136.26,8.0249013]
[1767983656223,0.70826669,136.32,136.29,4.52768996]
[1767983656395,0.70826669,136.32,136.29,4.46768999]
[1767983656595,0.70826669,136.31,136.26,4.52768996]
[1767983656916,0.70826669,136.31,136.25,14.08599388]
[1767983656917,4.52768996,136.3,136.25,14.08599388]
[1767983657395,4.52768996,136.3,136.26,0.68599388]
[1767983658700,11.8646379,136.3,136.26,0.68599388]
[1767983659020,12.57234348,136.31,136.26,0.68599388]
[1767983659219,4.52768996,136.29,136.26,0.68599388]
[1767983659426,8.04465352,136.31,136.26,0.68599388]
[1767983659603,11.86407679,136.31,136.27,0.68599388]
[1767983660122,4.52768996,136.3,136.27,0.68599388]
[1767983661197,4.52768996,136.29,136.25,8.02519118]
[1767983661491,8.04465352,136.31,136.26,13.4]
[1767983661492,4.52768996,136.28,136.26,13.4]
[1767983662120,0.70826669,136.27,136.21,0.87632205]
[1767983662324,4.52768996,136.24,136.21,0.68599388]
[1767983663132,4.52768996,136.25,136.21,8.02743494]
[1767983663340,8.04717759,136.26,136.22,0.68599388]
[1767983663505,4.52768996,136.24,136.21,14.08599388]
[1767983664820,4.52768996,136.25,136.21,21.42757596]
[1767983665022,0.70826669,136.26,136.21,21.42757596]
[1767983665333,4.52768996,136.25,136.21,14.08599388]
[1767983665508,4.52768996,136.24,136.21,14.08599388]
[1767983665828,4.52768996,136.24,136.21,0.68599388]
[1767983666044,0.70826669,136.24,136.21,13.4]
[1767983666339,5.23595665,136.22,136.19,13.4]
[1767983666513,4.52768996,136.23,136.19,13.4]
[1767983666697,5.23595665,136.23,136.19,13.4]
[1767983667925,5.23595665,136.23,136.19,14.08599388]
[1767983669311,4.52768996,136.23,136.2,0.68599388]
[1767983669514,7.34014881,136.24,136.2,0.68599388]
[1767983669735,4.52768996,136.23,136.2,0.68599388]
[1767983670410,5.23595665,136.23,136.18,8.02910735]
[1767983670615,0.70826669,136.23,136.19,13.4]
[1767983670815,5.23595665,136.23,136.19,13.4]
[1767983671923,8.0479238,136.25,136.19,21.42827506]
[1767983672219,5.23595665,136.24,136.19,21.42827506]
[1767983672604,0.70826669,136.22,136.19,13.4]
[1767983672804,5.23595665,136.22,136.19,13.4]
[1767983673124,0.70826669,136.22,136.19,13.4]
[1767983673327,5.23595665,136.22,136.18,0.69640099]
[1767983673634,5.20527915,136.2,136.17,13.4]
[1767983673926,25.68828096,136.25,136.15,13.4]
[1767983673927,5.20527915,136.19,136.15,13.4]
[1767983674127,0.64758919,136.19,136.15,20.74472519]
[1767983674540,0.64758919,136.19,136.15,8.04112618]
[1767983674709,0.61758919,136.19,136.15,14.09640099]
[1767983675227,0.61758919,136.19,136.15,0.69640099]
[1767983675428,0.61758919,136.19,136.15,14.09640099]
[1767983675930,0.61758919,136.19,136.15,21.44113553]
[1767983676139,0.61758919,136.19,136.15,20.74473454]
[1767983678729,0.61758919,136.19,136.15,21.44113553]
[1767983681716,5.20527915,136.2,136.16,0.69640099]
[1767983682327,0.67758919,136.19,136.15,20.74473454]
[1767983682633,5.20527915,136.19,136.15,8.04113553]
[1767983682812,5.20527915,136.19,136.15,21.44113553]
[1767983683523,0.67758919,136.2,136.15,25.96882549]
[1767983683727,5.20527915,136.19,136.15,21.44113553]
[1767983684828,0.67758919,136.19,136.15,21.44113553]
[1767983685132,0.67758919,136.19,136.15,25.96882549]
[1767983685312,4.52768996,136.2,136.17,0.69640099]
[1767983685936,4.52768996,136.19,136.16,8.04058616]
[1767983686134,4.52768996,136.19,136.16,0.69640099]
[1767983686444,0.67758919,136.19,136.15,21.44099096]
[1767983687039,0.67758919,136.19,136.16,7.34428684]
[1767983688118,4.52768996,136.2,136.16,8.04068783]
[1767983688333,5.20527915,136.2,136.16,8.04068783]
[1767983689433,5.24743818,136.21,136.17,0.67271909]
[1767983689624,0.71974822,136.21,136.17,5.20040905]
[1767983689818,5.24743818,136.21,136.17,0.67271909]
[1767983690233,5.24743818,136.21,136.17,8.01620582]
[1767983690538,0.71974822,136.21,136.17,8.01620582]
[1767983690743,0.71974822,136.22,136.18,0.67271909]
[1767983690942,0.71974822,136.22,136.18,14.07271909]
[1767983691133,5.24743818,136.22,136.18,14.07271909]
[1767983692242,5.24743818,136.22,136.18,21.41554841]
[1767983692829,111.84034701,136.24,136.18,21.41554841]
[1767983692830,0.71974822,136.23,136.19,0.67271909]
[1767983693138,5.24743818,136.23,136.19,0.67271909]
[1767983693326,5.24743818,136.26,136.21,0.67271909]
[1767983693530,0.71974822,136.25,136.21,14.07271909]
[1767983693726,5.24743818,136.25,136.21,14.07271909]
[1767983693934,0.71974822,136.25,136.21,14.07271909]
[1767983694136,0.71974822,136.28,136.23,0.67271909]
[1767983694321,0.71974822,136.28,136.24,21.41239829]
[1767983694524,0.71974822,136.3,136.26,0.67271909]
[1767983694725,0.71974822,136.32,136.28,0.67271909]
[1767983694941,0.71974822,136.31,136.27,13.4]
[1767983695130,0.71974822,136.3,136.27,13.4]
[1767983695630,5.24743818,136.3,136.25,4.52768996]
[1767983695830,0.71974822,136.29,136.25,4.52768996]
[1767983696035,0.71974822,136.29,136.26,13.4]
[1767983696350,0.71974822,136.29,136.26,20.7388075]
[1767983697044,0.71974822,136.31,136.27,5.20040905]
[1767983697524,0.71974822,136.33,136.27,5.20040905]
[1767983697728,0.71974822,136.32,136.28,4.52768996]
[1767983697940,0.71974822,136.33,136.29,13.4]
[1767983698150,22.445594,136.35,136.3,5.20040905]
[1767983698151,20.35876925,136.35,136.3,5.20040905]
[1767983698339,15.83107929,136.35,136.31,7.33621891]
[1767983698744,15.11133107,136.35,136.32,18.60040905]
[1767983699129,15.11133107,136.35,136.33,4.52768996]
[1767983699626,1e-08,136.35,136.33,0.61271918]
[1767983699843,1e-08,136.35,136.33,5.14040914]
[1767983700298,1e-08,136.35,136.32,13.4]
[1767983700428,0.71974822,136.34,136.3,11.86423957]
[1767983700730,0.71974823,136.35,136.32,4.52768996]
[1767983700931,0.71974823,136.35,136.25,0.73394495]
[1767983700932,0.71974822,136.34,136.25,0.73394495]
[1767983701132,1e-08,136.35,136.24,43.38000154]
[1767983701133,0.71974822,136.32,136.24,43.38000154]
[1767983701334,0.71974822,136.3,136.26,4.52768996]
[1767983701533,5.24743818,136.31,136.26,7.33850776]
[1767983701751,0.71974822,136.29,136.23,8.01316491]
[1767983701948,5.24743818,136.28,136.23,25.94085487]
[1767983702253,4.52768996,136.3,136.26,0.67271909]
[1767983702556,0.71974822,136.26,136.2,4.52768996]
[1767983702748,0.71974822,136.24,136.2,11.86944376]
[1767983703056,4.52768996,136.29,136.23,4.52768996]
[1767983703057,0.67040307,136.29,136.23,4.52768996]
[1767983703255,0.67040307,136.27,136.23,4.52768996]
[1767983703440,5.19809303,136.24,136.19,4.52768996]
[1767983703755,0.67040307,136.23,136.2,4.52768996]
[1767983703939,0.67040307,136.25,136.2,4.52768996]
[1767983704142,0.67040307,136.25,136.19,7.34229889]
[1767983704449,0.67040307,136.25,136.21,11.86929483]
[1767983704753,0.67040307,136.27,136.23,4.52768996]
[1767983704952,0.67040307,136.27,136.22,4.52768996]
[1767983705154,0.67040307,136.26,136.22,4.52768996]
[1767983705465,0.67040307,136.24,136.19,25.27024671]
[1767983705640,0.67040307,136.23,136.19,11.87024671]
[1767983705844,0.67040307,136.23,136.2,7.34214088]
[1767983706042,0.67040307,136.23,136.21,4.52768996]
[1767983706256,0.67040307,136.25,136.21,4.52768996]
[1767983706455,31.74253032,136.3,136.24,4.52768996]
[1767983706456,0.67040307,136.29,136.24,4.52768996]
[1767983706658,8.00566029,136.33,136.27,0.03269385]
[1767983706855,8.00566029,136.33,136.28,4.52768996]
[1767983706856,0.67040307,136.32,136.28,4.52768996]
[1767983707057,0.67040307,136.32,136.27,13.4]
[1767983707359,0.67040307,136.32,136.29,4.52768996]
[1767983707564,0.67040307,136.32,136.3,4.52768996]
[1767983707796,0.67040307,136.32,136.29,4.52768996]
[1767983708576,0.67040307,136.32,136.29,12.00828197]
[1767983708859,8.00613038,136.32,136.29,12.00828197]
[1767983709049,0.67040307,136.31,136.28,12.00828197]
[1767983709360,0.67040307,136.31,136.27,25.40828197]
[1767983709577,0.67040307,136.31,136.27,13.4]
[1767983709737,0.67040307,136.31,136.26,12.00828197]
[1767983709738,0.67040307,136.3,136.26,12.00828197]
[1767983709942,0.67040307,136.3,136.26,25.40828197]
[1767983710441,0.67040307,136.3,136.27,12.00828197]
[1767983711262,0.67040307,136.3,136.26,13.4]
[1767983711467,0.67040307,136.3,136.27,12.00828197]
[1767983712547,0.67040307,136.3,136.26,20.73880772]
[1767983712750,0.67040307,136.3,136.27,12.00828197]
[1767983713343,0.67040307,136.3,136.26,13.4]
[1767983713538,0.67040307,136.33,136.29,12.00828197]
[1767983713758,0.67040307,136.33,136.3,12.00828197]
[1767983714042,0.67040307,136.33,136.28,12.00828197]
[1767983714244,0.67040307,136.33,136.29,12.00828197]
[1767983714656,8.00562211,136.33,136.29,7.38935594]
[1767983714846,0.67040307,136.32,136.29,7.38935594]
[1767983715049,1e-08,136.35,136.31,0.03269385]
[1767983715253,1e-08,136.35,136.32,13.4]
[1767983715650,1e-08,136.35,136.33,7.38935594]
[1767983716344,1e-08,136.35,136.34,7.38935594]
[1767983716747,1e-08,136.35,136.34,14.7239606]
[1767983716950,0.2,136.37,136.34,14.7239606]
[1767983717146,0.87040307,136.38,136.36,7.38935594]
[1767983717367,0.87040307,136.38,136.35,13.4]
[1767983717562,0.2,136.38,136.35,20.78935594]
[1767983718160,0.2,136.38,136.35,13.4]
[1767983718353,0.2,136.38,136.36,7.38935594]
[1767983718667,0.2,136.38,136.35,13.4]
[1767983718867,0.87040307,136.38,136.36,7.38935594]
[1767983719061,0.2,136.4,136.37,7.38935594]
[1767983719261,0.2,136.4,136.39,7.38935594]
[1767983719648,0.2,136.4,136.39,7.32935598]
[1767983719851,0.87040307,136.4,136.39,6.60435596]
[1767983720050,0.87040307,136.4,136.38,7.38935594]
[1767983721151,0.87040307,136.4,136.39,7.38935594]
[1767983721856,0.67040307,136.39,136.33,19.03808546]
[1767983722071,0.67040307,136.39,136.38,7.38935594]
[1767983722452,0.67040307,136.39,136.35,7.33385336]
[1767983722651,0.67040307,136.39,136.37,7.38935594]
[1767983722963,0.67040307,136.39,136.37,7.32935595]
[1767983723272,0.67040307,136.39,136.37,14.66227632]
[1767983723570,0.67040307,136.39,136.35,31.73443898]
[1767983723771,0.2,136.4,136.36,21.41411922]
[1767983723963,0.2,136.4,136.38,7.38935594]
[1767983724158,0.2,136.4,136.38,0.70073368]
[1767983724365,0.2,136.4,136.39,7.38935594]
[1767983725054,0.2,136.4,136.39,7.32935595]
[1767983725356,0.2,136.43,136.39,28.04127177]
[1767983725564,0.2,136.43,136.42,7.38935594]
[1767983725759,0.2,136.43,136.42,7.32935598]
[1767983726269,0.2,136.43,136.4,0.70073368]
[1767983726569,0.2,136.43,136.42,7.38935594]
[1767983726772,0.2,136.43,136.42,7.32935602]
[1767983726983,0.2,136.43,136.41,7.38935594]
[1767983727291,0.2,136.43,136.4,8.09008962]
[1767983727669,0.2,136.43,136.41,7.38935594]
[1767983727870,0.2,136.43,136.42,7.38935594]
[1767983728071,20.98935594,136.47,136.42,8.03008964]
[1767983728273,0.2,136.47,136.43,7.38935594]
[1767983728778,0.594,136.49,136.45,8.09008962]
[1767983728970,0.66990997,136.5,136.46,7.38935594]
[1767983729170,7.32654406,136.49,136.46,7.38935594]
[1767983729377,7.94812472,136.49,136.45,7.38935594]
[1767983729571,7.99608067,136.51,136.45,7.32853065]
[1767983729776,7.99608067,136.51,136.47,7.38935594]
[1767983729977,182.21170228,136.53,136.44,13.38]
[1767983729978,0.67040307,136.53,136.49,7.38935594]
[1767983730264,0.67040307,136.53,136.46,7.32799921]
[1767983730469,0.62109249,136.52,136.48,7.38935594]
[1767983730773,0.62109249,136.52,136.49,7.38935594]
[1767983730973,7.32451187,136.53,136.49,7.38935594]
[1767983731188,0.66990997,136.52,136.49,7.38935594]
[1767983731369,8.19444511,136.54,136.48,8.02770094]
[1767983731690,0.62109249,136.53,136.5,7.38935594]
[1767983731992,7.52404204,136.54,136.5,7.38935594]
[1767983732188,7.52404204,136.54,136.49,0.70073368]
[1767983732373,0.2,136.54,136.49,0.70073368]
[1767983732572,0.2,136.54,136.49,13.38]
[1767983732573,0.66990997,136.53,136.49,13.38]
[1767983732796,0.62158066,136.52,136.49,13.38]
[1767983732978,0.62158066,136.52,136.48,7.38935594]
[1767983733385,0.62158066,136.52,136.49,7.38935594]
[1767983733792,7.94658129,136.52,136.49,7.38935594]
[1767983734285,0.62158066,136.52,136.5,7.38935594]
[1767983734890,0.62158066,136.52,136.48,7.38935594]
[1767983735094,0.89775044,136.54,136.51,7.38935594]
[1767983735394,0.2,136.54,136.52,7.38935594]
[1767983735571,0.2,136.54,136.51,0.67651285]
[1767983735572,0.2,136.54,136.53,7.38935594]
[1767983735775,8.45537641,136.57,136.53,7.38935594]
[1767983735973,0.4351725,136.57,136.55,7.38935594]
[1767983736169,0.4351725,136.57,136.55,0.67651285]
[1767983736372,31.67960576,136.62,136.56,8.06586879]
[1767983736373,14.07775044,136.62,136.56,8.06586879]
[1767983736567,0.5940186,136.61,136.57,7.38935594]
[1767983736792,28.08909228,136.62,136.53,13.38]
[1767983736793,0.69569645,136.58,136.53,13.38]
[1767983737089,0.69569645,136.58,136.54,7.38935594]
[1767983737295,8.01756187,136.58,136.54,7.38935594]
[1767983737499,0.59605205,136.57,136.54,7.38935594]
[1767983737809,7.32186542,136.58,136.5,20.70581707]
[1767983737810,0.59703853,136.55,136.5,20.70581707]
[1767983738002,0.59703853,136.55,136.52,7.38935594]
[1767983738174,0.69775044,136.57,136.54,7.38935594]
[1767983738372,0.69775044,136.57,136.53,7.32437499]
[1767983738680,0.69775044,136.57,136.55,7.38935594]
[1767983739297,8.02002663,136.57,136.54,7.38935594]
[1767983739589,8.02002663,136.57,136.53,7.38935594]
[1767983739792,0.5940186,136.56,136.52,7.38935594]
[1767983740319,0.69569645,136.53,136.48,0.67651285]
[1767983740467,0.59605205,136.52,136.48,7.38935594]
[1767983741193,7.38935594,136.51,136.47,0.67651285]
[1767983741492,7.92118975,136.52,136.47,8.06586879]
[1767983741881,7.92118975,136.52,136.48,7.38935594]
[1767983742071,7.92118975,136.52,136.47,0.67651285]
[1767983742277,7.92118975,136.52,136.48,7.38935594]
[1767983742494,15.41145827,136.54,136.49,8.06586879]
[1767983742877,8.08606906,136.52,136.47,0.67651285]
[1767983743093,0.69671312,136.52,136.48,7.38935594]
[1767983743286,15.41145827,136.54,136.49,7.38935594]
[1767983743496,0.5940186,136.53,136.49,7.38935594]
[1767983744207,0.83887469,136.57,136.52,8.06586879]
[1767983744381,8.01902475,136.57,136.54,7.38935594]
[1767983744702,8.01902475,136.57,136.53,7.38935594]
[1767983744911,0.69775044,136.6,136.56,7.38935594]
[1767983745200,0.69775044,136.6,136.55,0.67651285]
[1767983745392,8.01841233,136.6,136.56,7.38935594]
[1767983745589,0.5940186,136.59,136.55,7.38935594]
[1767983745902,7.38935594,136.6,136.55,7.38935594]
[1767983746212,6.82227227,136.64,136.55,7.38935594]
[1767983746379,7.38935594,136.6,136.55,7.38935594]
[1767983746783,25.61662884,136.63,136.58,7.38935594]
[1767983746999,20.89848525,136.65,136.59,0.67651285]
[1767983747313,14.70942857,136.62,136.58,7.38935594]
[1767983747497,7.31919843,136.63,136.59,7.38935594]
[1767983748303,20.96935594,136.65,136.59,0.67651285]
[1767983748503,7.31869368,136.64,136.59,0.67651285]
[1767983748703,0.10399703,136.63,136.58,8.0868032]
[1767983749003,0.10399703,136.63,136.59,7.38935594]
[1767983749391,0.10399703,136.63,136.56,7.32271032]
[1767983749392,7.91332859,136.62,136.55,0.69744726]
[1767983749584,7.91332859,136.62,136.58,7.38935594]
[1767983750484,7.91332859,136.62,136.59,7.38935594]
[1767983750682,7.91332859,136.62,136.58,7.38935594]
[1767983750882,7.31957253,136.62,136.58,0.69744726]
[1767983751206,0.10399703,136.61,136.54,0.69744726]
[1767983751506,7.32064421,136.6,136.56,7.38935594]
[1767983751678,7.91440027,136.6,136.55,7.38935594]
[1767983751884,33.60536675,136.6,136.55,7.38935594]
[1767983752305,7.32064421,136.6,136.57,7.38935594]
[1767983752494,7.32032236,136.61,136.56,0.69744726]
[1767983752899,0.099,136.64,136.6,7.38935594]
[1767983753099,0.099,136.64,136.59,0.69744726]
[1767983753100,0.2,136.65,136.62,8.0868032]
[1767983753403,0.2,136.65,136.62,7.38935594]
[1767983753611,0.2,136.65,136.62,0.69744726]